fUST/lending_fUST_20250827
["ID","MTS","AMOUNT","RATE_DAILY","PERIOD"]
[381642380,1756300282559,-360.0,0.00023896,2]
[381642381,1756300282569,-153.0,0.00023918,2]
[381642382,1756300282579,-160.0,0.00024,7]
[381642383,1756300282589,-160.0,0.00024,7]
[381642384,1756300282599,-159.0,0.00024,6]
[381642385,1756300282609,-159.0,0.00024,6]
[381642386,1756300282619,-232.59867797,0.00024,7]
[381642387,1756300282629,-217.23771399,0.00024,7]
[381642388,1756300282639,-160.0,0.00024,7]
[381642389,1756300282649,-845.298898,0.00024,7]
[381642390,1756300282659,-3687.11212641,0.00024008,2]
[381642391,1756300282670,-480.0,0.00024109,2]
[381642392,1756300282680,-484.65,0.00024109,2]
[381642393,1756300282690,-602.96,0.00024109,2]
[381642394,1756300282700,-398.54863918,0.00024109,2]
[381642395,1756300282710,-480.0,0.00024109,2]
[381642396,1756300282719,-602.45,0.00024109,2]
[381642397,1756300282729,-480.0,0.00024109,2]
[381642398,1756300282739,-480.0,0.00024109,2]
[381642399,1756300282749,-480.0,0.00024109,2]
[381642400,1756300282759,-615.52450224,0.00024109,2]
[381642401,1756300282769,-480.0,0.00024109,2]
[381642402,1756300282779,-480.0,0.00024109,2]
[381642403,1756300282789,-480.0,0.00024109,2]
[381642404,1756300282799,-517.62,0.00024109,2]
[381642405,1756300282809,-480.0,0.00024109,2]
[381642406,1756300282821,-426.40554061,0.00024109,2]
[381642407,1756300282831,-480.0,0.00024109,2]
[381642408,1756300282842,-480.0,0.00024109,2]
[381642409,1756300282851,-480.0,0.00024109,2]
[381642410,1756300282861,-480.0,0.00024109,2]
[381642411,1756300282871,-863.12,0.00024109,2]
[381642412,1756300282882,-480.0,0.00024109,2]
[381642413,1756300282892,-602.59,0.00024109,2]
[381642414,1756300282902,-480.0,0.00024109,2]
[381642415,1756300282912,-480.0,0.00024109,2]
[381642416,1756300282927,-480.0,0.00024109,2]
[381642417,1756300282940,-710.45,0.00024109,2]
[381642418,1756300282950,-480.0,0.00024109,2]
[381642419,1756300282960,-480.0,0.00024109,2]
[381642420,1756300282969,-480.0,0.00024109,2]
[381642421,1756300282979,-480.0,0.00024109,2]
[381642422,1756300282989,-480.0,0.00024109,2]
[381642423,1756300282999,-480.0,0.00024109,2]
[381642424,1756300283009,-480.0,0.00024109,2]
[381642425,1756300283019,-182.03035522,0.00024109,2]
[381642426,1756300283029,-740.24,0.00024109,2]
[381642427,1756300283038,-549.84,0.00024109,2]
[381642428,1756300283048,-480.0,0.00024109,2]
[381642429,1756300283058,-480.0,0.00024109,2]
[381642430,1756300283068,-480.0,0.00024109,2]
[381642431,1756300283078,-480.0,0.00024109,2]
[381642432,1756300283087,-480.0,0.00024109,2]
[381642433,1756300283097,-480.0,0.00024109,2]
[381642434,1756300283107,-480.0,0.00024109,2]
[381642435,1756300283117,-1190.92,0.00024109,2]
[381642436,1756300283127,-480.0,0.00024109,2]
[381642437,1756300283136,-317.49048867,0.00024109,2]
[381642438,1756300283147,-653.11,0.00024109,2]
[381642439,1756300283156,-480.0,0.00024109,2]
[381642440,1756300283166,-701.02,0.00024109,2]
[381642441,1756300283176,-480.0,0.00024109,2]
[381642442,1756300283188,-480.0,0.00024109,2]
[381642443,1756300283198,-480.0,0.00024109,2]
[381642444,1756300283208,-561.6,0.00024109,2]
[381642445,1756300283217,-480.0,0.00024109,2]
[381642446,1756300283227,-536.08,0.00024109,2]
[381642447,1756300283236,-785.56,0.00024109,2]
[381642448,1756300283299,-707.7,0.00024109,2]
[381642449,1756300283324,-480.0,0.00024109,2]
[381642450,1756300283334,-484.55814121,0.00024109,2]
[381642451,1756300283348,-480.0,0.00024109,2]
[381642452,1756300283357,-848.07,0.00024109,2]
[381642453,1756300283368,-480.0,0.00024109,2]
[381642454,1756300283377,-480.0,0.00024109,2]
[381642455,1756300283388,-480.0,0.00024109,2]
[381642456,1756300283398,-480.0,0.00024109,2]
[381642457,1756300283407,-480.0,0.00024109,2]
[381642458,1756300283418,-480.0,0.00024109,2]
[381642459,1756300283429,-480.0,0.00024109,2]
[381642460,1756300283439,-480.0,0.00024109,2]
[381642461,1756300283448,-480.0,0.00024109,2]
[381642462,1756300283458,-480.0,0.00024109,2]
[381642463,1756300283468,-1132.16,0.00024109,2]
[381642464,1756300283478,-480.0,0.00024109,2]
[381642465,1756300283487,-480.0,0.00024109,2]
[381642466,1756300283496,-668.2,0.00024109,2]
[381642467,1756300283506,-480.0,0.00024109,2]
[381642468,1756300283516,-480.0,0.00024109,2]
[381642469,1756300283530,-592.01,0.00024109,2]
[381642470,1756300283549,-480.0,0.00024109,2]
[381642471,1756300283559,-480.0,0.00024109,2]
[381642472,1756300283569,-480.0,0.00024109,2]
[381642473,1756300283579,-480.0,0.00024109,2]
[381642474,1756300283588,-480.0,0.00024109,2]
[381642475,1756300283598,-480.0,0.00024109,2]
[381642476,1756300283607,-480.0,0.00024109,2]
[381642477,1756300283616,-1077.95,0.00024109,2]
[381642478,1756300283626,-480.0,0.00024109,2]
[381642479,1756300283635,-480.0,0.00024109,2]
[381642480,1756300283645,-480.0,0.00024109,2]
[381642481,1756300283654,-480.0,0.00024109,2]
[381642482,1756300283664,-480.0,0.00024109,2]
[381642483,1756300283674,-480.0,0.00024109,2]
[381642484,1756300283684,-528.98,0.00024109,2]
[381642485,1756300283694,-480.0,0.00024109,2]
[381642486,1756300283703,-557.3,0.00024109,2]
[381642487,1756300283713,-534.74,0.00024109,2]
[381642488,1756300283722,-482.45,0.00024109,2]
[381642489,1756300283731,-480.0,0.00024109,2]
[381642490,1756300283741,-622.33,0.00024109,2]
[381642491,1756300283751,-480.0,0.00024109,2]
[381642492,1756300283762,-480.0,0.00024109,2]
[381642493,1756300283772,-522.2,0.00024109,2]
[381642494,1756300283781,-151.0,0.00024109,7]
[381642495,1756300283791,-480.0,0.00024109,2]
[381642496,1756300283801,-480.0,0.00024109,2]
[381642497,1756300283810,-480.0,0.00024109,2]
[381642498,1756300283820,-682.64,0.00024109,2]
[381642499,1756300283830,-480.0,0.00024109,2]
[381642500,1756300283841,-480.0,0.00024109,2]
[381642501,1756300283850,-480.0,0.00024109,2]
[381642502,1756300283866,-480.0,0.00024109,2]
[381642503,1756300283882,-200.0,0.00024109,2]
[381642504,1756300283892,-480.0,0.00024109,2]
[381642505,1756300283904,-480.0,0.00024109,2]
[381642506,1756300283914,-480.0,0.00024109,2]
[381642507,1756300283924,-496.41,0.00024109,2]
[381642508,1756300283935,-480.0,0.00024109,2]
[381642509,1756300283947,-509.28,0.00024109,2]
[381642510,1756300283957,-961.54,0.00024109,2]
[381642511,1756300283967,-480.0,0.00024109,2]
[381642512,1756300283978,-541.92,0.00024109,2]
[381642513,1756300283989,-480.0,0.00024109,2]
[381642514,1756300283999,-489.46,0.00024109,2]
[381642515,1756300284009,-480.0,0.00024109,2]
[381642516,1756300284019,-480.0,0.00024109,2]
[381642517,1756300284030,-483.97,0.00024109,2]
[381642518,1756300284040,-572.57,0.00024109,2]
[381642519,1756300284051,-524.23,0.00024109,2]
[381642520,1756300284060,-480.0,0.00024109,2]
[381642521,1756300284070,-480.0,0.00024109,2]
[381642522,1756300284081,-787.06,0.00024109,2]
[381642523,1756300284090,-480.0,0.00024109,2]
[381642524,1756300284100,-518.41,0.00024109,2]
[381642525,1756300284109,-480.0,0.00024109,2]
[381642526,1756300284119,-480.0,0.00024109,2]
[381642527,1756300284130,-739.43,0.00024109,2]
[381642528,1756300284140,-480.0,0.00024109,2]
[381642529,1756300284151,-480.0,0.00024109,2]
[381642530,1756300284161,-480.0,0.00024109,2]
[381642531,1756300284171,-1255.57,0.00024109,2]
[381642532,1756300284180,-493.24,0.00024109,2]
[381642533,1756300284191,-598.58,0.00024109,2]
[381642534,1756300284200,-480.0,0.00024109,2]
[381642535,1756300284210,-641.42,0.00024109,2]
[381642536,1756300284219,-480.0,0.00024109,2]
[381642537,1756300284229,-728.84,0.00024109,2]
[381642538,1756300284239,-480.0,0.00024109,2]
[381642539,1756300284248,-480.0,0.00024109,2]
[381642540,1756300284260,-696.31,0.00024109,2]
[381642541,1756300284270,-480.0,0.00024109,2]
[381642542,1756300284280,-550.69,0.00024109,2]
[381642543,1756300284290,-480.0,0.00024109,2]
[381642544,1756300284301,-555.64,0.00024109,2]
[381642545,1756300284311,-480.0,0.00024109,2]
[381642546,1756300284321,-480.0,0.00024109,2]
[381642547,1756300284331,-480.0,0.00024109,2]
[381642548,1756300284342,-480.0,0.00024109,2]
[381642549,1756300284353,-480.0,0.00024109,2]
[381642550,1756300284362,-516.93,0.00024109,2]
[381642551,1756300284372,-480.0,0.00024109,2]
[381642552,1756300284382,-480.0,0.00024109,2]
[381642553,1756300284392,-480.0,0.00024109,2]
[381642554,1756300284402,-480.0,0.00024109,2]
[381642555,1756300284413,-500.0,0.00024109,2]
[381642556,1756300284424,-480.0,0.00024109,2]
[381642557,1756300284436,-480.0,0.00024109,2]
[381642558,1756300284446,-4811.31,0.00024109,2]
[381642559,1756300284456,-480.0,0.00024109,2]
[381642560,1756300284466,-480.0,0.00024109,2]
[381642561,1756300284476,-480.0,0.00024109,2]
[381642562,1756300284486,-480.0,0.00024109,2]
[381642563,1756300284497,-480.0,0.00024109,2]
[381642564,1756300284507,-892.28,0.00024109,2]
[381642565,1756300284517,-648.11,0.00024109,2]
[381642566,1756300284527,-480.0,0.00024109,2]
[381642567,1756300284538,-628.16,0.00024109,2]
[381642568,1756300284549,-480.0,0.00024109,2]
[381642569,1756300284559,-480.0,0.00024109,2]
[381642570,1756300284569,-496.15,0.00024109,2]
[381642571,1756300284579,-520.69,0.00024109,2]
[381642572,1756300284590,-700.56,0.00024109,2]
[381642573,1756300284600,-480.0,0.00024109,2]
[381642574,1756300284609,-531.78,0.00024109,2]
[381642575,1756300284618,-480.0,0.00024109,2]
[381642576,1756300284628,-480.0,0.00024109,2]
[381642577,1756300284638,-2061.31,0.00024109,2]
[381642578,1756300284648,-548.5,0.00024109,2]
[381642579,1756300284658,-598.63,0.00024109,2]
[381642580,1756300284668,-707.22,0.00024109,2]
[381642581,1756300284677,-592.64,0.00024109,2]
[381642582,1756300284688,-480.0,0.00024109,2]
[381642583,1756300284698,-480.0,0.00024109,2]
[381642584,1756300284707,-613.18117269,0.00024109,2]
[381642585,1756300284717,-480.0,0.00024109,2]
[381642586,1756300284727,-480.0,0.00024109,2]
[381642587,1756300284737,-500.0,0.00024109,2]
[381642588,1756300284747,-499.75,0.00024109,2]
[381642589,1756300284757,-1499.56,0.00024109,2]
[381642590,1756300284767,-536.82,0.00024109,2]
[381642591,1756300284777,-480.0,0.00024109,2]
[381642592,1756300284787,-851.04,0.00024109,2]
[381642593,1756300284798,-480.0,0.00024109,2]
[381642594,1756300284808,-480.0,0.00024109,2]
[381642595,1756300284818,-480.0,0.00024109,2]
[381642596,1756300284828,-621.12,0.00024109,2]
[381642597,1756300284839,-347.51074544,0.00024109,2]
[381642598,1756300284849,-480.0,0.00024109,2]
[381642599,1756300284859,-502.73,0.00024109,2]
[381642600,1756300284869,-540.63,0.00024109,2]
[381642601,1756300284879,-1154.23,0.00024109,2]
[381642602,1756300284890,-480.0,0.00024109,2]
[381642603,1756300284901,-480.0,0.00024109,2]
[381642604,1756300284910,-482.09984902,0.00024109,2]
[381642605,1756300284921,-480.0,0.00024109,2]
[381642606,1756300284931,-991.65,0.00024109,2]
[381642607,1756300284942,-2209.59,0.00024109,2]
[381642608,1756300284952,-480.0,0.00024109,2]
[381642609,1756300284962,-1168.45,0.00024109,2]
[381642610,1756300284972,-480.0,0.00024109,2]
[381642611,1756300284982,-480.0,0.00024109,2]
[381642612,1756300284992,-480.0,0.00024109,2]
[381642613,1756300285002,-480.0,0.00024109,2]
[381642614,1756300285013,-480.0,0.00024109,2]
[381642615,1756300285023,-480.0,0.00024109,2]
[381642616,1756300285034,-687.72,0.00024109,2]
[381642617,1756300285045,-480.0,0.00024109,2]
[381642618,1756300285055,-1375.52,0.00024109,2]
[381642619,1756300285066,-609.53,0.00024109,2]
[381642620,1756300285076,-480.0,0.00024109,2]
[381642621,1756300285086,-480.0,0.00024109,2]
[381642622,1756300285096,-480.0,0.00024109,2]
[381642623,1756300285106,-629.17,0.00024109,2]
[381642624,1756300285116,-480.0,0.00024109,2]
[381642625,1756300285126,-480.0,0.00024109,2]
[381642626,1756300285136,-879.01,0.00024109,2]
[381642627,1756300285147,-480.0,0.00024109,2]
[381642628,1756300285158,-553.05,0.00024109,2]
[381642629,1756300285168,-480.0,0.00024109,2]
[381642630,1756300285177,-511.27,0.00024109,2]
[381642631,1756300285188,-480.0,0.00024109,2]
[381642632,1756300285198,-480.0,0.00024109,2]
[381642633,1756300285208,-480.0,0.00024109,2]
[381642634,1756300285219,-480.0,0.00024109,2]
[381642635,1756300285229,-480.0,0.00024109,2]
[381642636,1756300285239,-480.0,0.00024109,2]
[381642637,1756300285249,-1185.91,0.00024109,2]
[381642638,1756300285260,-480.0,0.00024109,2]
[381642639,1756300285270,-480.0,0.00024109,2]
[381642640,1756300285280,-480.0,0.00024109,2]
[381642641,1756300285290,-480.0,0.00024109,2]
[381642642,1756300285300,-480.0,0.00024109,2]
[381642643,1756300285311,-674.82,0.00024109,2]
[381642644,1756300285322,-480.0,0.00024109,2]
[381642645,1756300285333,-1582.66,0.00024109,2]
[381642646,1756300285345,-480.0,0.00024109,2]
[381642647,1756300285356,-3079.94,0.00024109,2]
[381642648,1756300285366,-1441.98,0.00024109,2]
[381642649,1756300285376,-480.0,0.00024109,2]
[381642650,1756300285387,-558.78,0.00024109,2]
[381642651,1756300285397,-399.62276295,0.00024109,2]
[381642652,1756300285407,-512.86,0.00024109,2]
[381642653,1756300285417,-535.83,0.00024109,2]
[381642654,1756300285427,-1247.25,0.00024109,2]
[381642655,1756300285438,-619.84,0.00024109,2]
[381642656,1756300285448,-1012.69,0.00024109,2]
[381642657,1756300285458,-480.0,0.00024109,2]
[381642658,1756300285467,-480.0,0.00024109,2]
[381642659,1756300285477,-1558.31,0.00024109,2]
[381642660,1756300285486,-575.32,0.00024109,2]
[381642661,1756300285496,-480.0,0.00024109,2]
[381642662,1756300285505,-480.0,0.00024109,2]
[381642663,1756300285515,-480.0,0.00024109,2]
[381642664,1756300285526,-480.0,0.00024109,2]
[381642665,1756300285535,-1467.04,0.00024109,2]
[381642666,1756300285545,-480.0,0.00024109,2]
[381642667,1756300285555,-480.0,0.00024109,2]
[381642668,1756300285565,-1873.26,0.00024109,2]
[381642669,1756300285574,-480.0,0.00024109,2]
[381642670,1756300285584,-480.0,0.00024109,2]
[381642671,1756300285594,-504.11,0.00024109,2]
[381642672,1756300285603,-480.0,0.00024109,2]
[381642673,1756300285613,-480.0,0.00024109,2]
[381642674,1756300285623,-480.0,0.00024109,2]
[381642675,1756300285633,-508.08,0.00024109,2]
[381642676,1756300285643,-480.0,0.00024109,2]
[381642677,1756300285653,-2486.85,0.00024109,2]
[381642678,1756300285663,-480.0,0.00024109,2]
[381642679,1756300285673,-480.0,0.00024109,2]
[381642680,1756300285683,-480.0,0.00024109,2]
[381642681,1756300285692,-768.18,0.00024109,2]
[381642682,1756300285702,-7496.55,0.00024109,2]
[381642683,1756300285712,-820.29,0.00024109,2]
[381642684,1756300285723,-487.65,0.00024109,2]
[381642685,1756300285734,-480.0,0.00024109,2]
[381642686,1756300285744,-480.0,0.00024109,2]
[381642687,1756300285755,-480.0,0.00024109,2]
[381642688,1756300285766,-1126.02,0.00024109,2]
[381642689,1756300285777,-480.0,0.00024109,2]
[381642690,1756300285787,-1019.66,0.00024109,2]
[381642691,1756300285797,-480.0,0.00024109,2]
[381642692,1756300285807,-4097.76,0.00024109,2]
[381642693,1756300285817,-1538.8,0.00024109,2]
[381642694,1756300285828,-480.0,0.00024109,2]
[381642695,1756300285838,-553.39,0.00024109,2]
[381642696,1756300285848,-480.0,0.00024109,2]
[381642697,1756300285858,-563.16,0.00024109,2]
[381642698,1756300285868,-866.73,0.00024109,2]
[381642699,1756300285879,-532.37,0.00024109,2]
[381642700,1756300285888,-280.56870134,0.00024109,2]
[381642701,1756300285897,-1089.92,0.00024109,2]
[381642702,1756300285907,-480.0,0.00024109,2]
[381642703,1756300285917,-603.96713537,0.00024109,2]
[381642704,1756300285928,-480.0,0.00024109,2]
[381642705,1756300285939,-619.83,0.00024109,2]
[381642706,1756300285948,-480.0,0.00024109,2]
[381642707,1756300285958,-600.24437068,0.00024109,2]
[381642708,1756300285968,-480.0,0.00024109,2]
[381642709,1756300285979,-1480.58,0.00024109,2]
[381642710,1756300285989,-480.0,0.00024109,2]
[381642711,1756300286000,-1080.29,0.00024109,2]
[381642712,1756300286011,-2783.48,0.00024109,2]
[381642713,1756300286021,-3788.9,0.00024109,2]
[381642714,1756300286030,-1045.46,0.00024109,2]
[381642715,1756300286040,-527.62,0.00024109,2]
[381642716,1756300286051,-849.03,0.00024109,2]
[381642717,1756300286061,-480.0,0.00024109,2]
[381642718,1756300286071,-480.0,0.00024109,2]
[381642719,1756300286080,-1489.59,0.00024109,2]
[381642720,1756300286090,-1135.21,0.00024109,2]
[381642721,1756300286100,-480.0,0.00024109,2]
[381642722,1756300286111,-1171.32,0.00024109,2]
[381642723,1756300286121,-506.58,0.00024109,2]
[381642724,1756300286131,-1373.52,0.00024109,2]
[381642725,1756300286141,-885.58,0.00024109,2]
[381642726,1756300286151,-521.66,0.00024109,2]
[381642727,1756300286162,-480.0,0.00024109,2]
[381642728,1756300286171,-994.97,0.00024109,2]
[381642729,1756300286181,-2291.1,0.00024109,2]
[381642730,1756300286192,-480.0,0.00024109,2]
[381642731,1756300286203,-836.96,0.00024109,2]
[381642732,1756300286213,-480.0,0.00024109,2]
[381642733,1756300286223,-4941.28,0.00024109,2]
[381642734,1756300286233,-805.85,0.00024109,2]
[381642735,1756300286243,-480.0,0.00024109,2]
[381642736,1756300286254,-480.0,0.00024109,2]
[381642737,1756300286266,-509.64,0.00024109,2]
[381642738,1756300286276,-584.58,0.00024109,2]
[381642739,1756300286285,-826.49,0.00024109,2]
[381642740,1756300286295,-480.0,0.00024109,2]
[381642741,1756300286305,-480.0,0.00024109,2]
[381642742,1756300286314,-480.0,0.00024109,2]
[381642743,1756300286324,-826.37,0.00024109,2]
[381642744,1756300286334,-642.66,0.00024109,2]
[381642745,1756300286347,-647.14,0.00024109,2]
[381642746,1756300286357,-495.41,0.00024109,2]
[381642747,1756300286367,-480.0,0.00024109,2]
[381642748,1756300286377,-480.0,0.00024109,2]
[381642749,1756300286387,-480.0,0.00024109,2]
[381642750,1756300286396,-713.97,0.00024109,2]
[381642751,1756300286406,-706.08,0.00024109,2]
[381642752,1756300286416,-684.55,0.00024109,2]
[381642753,1756300286425,-1220.94,0.00024109,2]
[381642754,1756300286436,-562.5,0.00024109,2]
[381642755,1756300286446,-480.0,0.00024109,2]
[381642756,1756300286459,-480.0,0.00024109,2]
[381642757,1756300286469,-480.0,0.00024109,2]
[381642758,1756300286479,-480.0,0.00024109,2]
[381642759,1756300286489,-503.91498901,0.00024161,9]
[381642760,1756300286498,-2500.0,0.00024164,2]
[381642761,1756300286509,-550.0,0.00024164,2]
[381642762,1756300286520,-225.85257859,0.00024179,2]
[381642763,1756300287016,-2125.14742141,0.00024179,2]
[381642764,1756300287027,-480.0,0.00024383,2]
[381642765,1756300287037,-484.65,0.00024383,2]
[381642766,1756300287047,-602.96,0.00024383,2]
[381642767,1756300287056,-480.0,0.00024383,2]
[381642768,1756300287066,-602.45,0.00024383,2]
[381642769,1756300287076,-480.0,0.00024383,2]
[381642770,1756300287086,-480.0,0.00024383,2]
[381642771,1756300287095,-480.0,0.00024383,2]
[381642772,1756300287105,-480.0,0.00024383,2]
[381642773,1756300287115,-480.0,0.00024383,2]
[381642774,1756300287125,-480.0,0.00024383,2]
[381642775,1756300287134,-517.62,0.00024383,2]
[381642776,1756300287144,-480.0,0.00024383,2]
[381642777,1756300287154,-445.13515415,0.00024383,2]
[381642778,1756300287165,-480.0,0.00024383,2]
[381642779,1756300287174,-480.0,0.00024383,2]
[381642780,1756300287184,-480.0,0.00024383,2]
[381642781,1756300287195,-863.12,0.00024383,2]
[381642782,1756300287204,-480.0,0.00024383,2]
[381642783,1756300287214,-602.59,0.00024383,2]
[381642784,1756300287224,-480.0,0.00024383,2]
[381642785,1756300287233,-275.20383491,0.00024383,2]
[381642786,1756300287243,-480.0,0.00024383,2]
[381642787,1756300287253,-710.45,0.00024383,2]
[381642788,1756300287262,-480.0,0.00024383,2]
[381642789,1756300287273,-480.0,0.00024383,2]
[381642790,1756300287283,-480.0,0.00024383,2]
[381642791,1756300287293,-480.0,0.00024383,2]
[381642792,1756300287302,-480.0,0.00024383,2]
[381642793,1756300287311,-480.0,0.00024383,2]
[381642794,1756300287321,-480.0,0.00024383,2]
[381642795,1756300287331,-740.24,0.00024383,2]
[381642796,1756300287342,-549.84,0.00024383,2]
[381642797,1756300287354,-378.85163014,0.00024383,2]
[381642798,1756300287364,-480.0,0.00024383,2]
[381642799,1756300287373,-480.0,0.00024383,2]
[381642800,1756300287382,-480.0,0.00024383,2]
[381642801,1756300287392,-480.0,0.00024383,2]
[381642802,1756300287401,-480.0,0.00024383,2]
[381642803,1756300287410,-480.0,0.00024383,2]
[381642804,1756300287421,-1190.92,0.00024383,2]
[381642805,1756300287430,-480.0,0.00024383,2]
[381642806,1756300287441,-653.11,0.00024383,2]
[381642807,1756300287451,-480.0,0.00024383,2]
[381642808,1756300287460,-701.02,0.00024383,2]
[381642809,1756300287471,-480.0,0.00024383,2]
[381642810,1756300287480,-480.0,0.00024383,2]
[381642811,1756300287490,-575.15802201,0.00024383,2]
[381642812,1756300287499,-561.6,0.00024383,2]
[381642813,1756300287509,-480.0,0.00024383,2]
[381642814,1756300287518,-536.08,0.00024383,2]
[381642815,1756300287528,-785.56,0.00024383,2]
[381642816,1756300287538,-707.7,0.00024383,2]
[381642817,1756300287547,-621.78330872,0.00024383,2]
[381642818,1756300287557,-480.0,0.00024383,2]
[381642819,1756300287567,-848.07,0.00024383,2]
[381642820,1756300287576,-480.0,0.00024383,2]
[381642821,1756300287586,-302.34748464,0.00024383,2]
[381642822,1756300287595,-480.0,0.00024383,2]
[381642823,1756300287605,-480.0,0.00024383,2]
[381642824,1756300287615,-480.0,0.00024383,2]
[381642825,1756300287625,-480.0,0.00024383,2]
[381642826,1756300287634,-480.0,0.00024383,2]
[381642827,1756300287644,-480.0,0.00024383,2]
[381642828,1756300287654,-480.0,0.00024383,2]
[381642829,1756300287664,-480.0,0.00024383,2]
[381642830,1756300287674,-1132.16,0.00024383,2]
[381642831,1756300287686,-480.0,0.00024383,2]
[381642832,1756300287695,-480.0,0.00024383,2]
[381642833,1756300287705,-668.2,0.00024383,2]
[381642834,1756300287715,-480.0,0.00024383,2]
[381642835,1756300287725,-480.0,0.00024383,2]
[381642836,1756300287734,-592.01,0.00024383,2]
[381642837,1756300287744,-480.0,0.00024383,2]
[381642838,1756300287753,-480.0,0.00024383,2]
[381642839,1756300287763,-480.0,0.00024383,2]
[381642840,1756300287772,-480.0,0.00024383,2]
[381642841,1756300287782,-480.0,0.00024383,2]
[381642842,1756300287791,-480.0,0.00024383,2]
[381642843,1756300287800,-480.0,0.00024383,2]
[381642844,1756300287810,-1077.95,0.00024383,2]
[381642845,1756300287819,-480.0,0.00024383,2]
[381642846,1756300287829,-480.0,0.00024383,2]
[381642847,1756300287838,-480.0,0.00024383,2]
[381642848,1756300287848,-480.0,0.00024383,2]
[381642849,1756300287858,-480.0,0.00024383,2]
[381642850,1756300287868,-480.0,0.00024383,2]
[381642851,1756300287878,-528.98,0.00024383,2]
[381642852,1756300287887,-480.0,0.00024383,2]
[381642853,1756300287896,-557.3,0.00024383,2]
[381642854,1756300287906,-534.74,0.00024383,2]
[381642855,1756300287915,-482.45,0.00024383,2]
[381642856,1756300287925,-480.0,0.00024383,2]
[381642857,1756300287935,-622.33,0.00024383,2]
[381642858,1756300287944,-480.0,0.00024383,2]
[381642859,1756300287954,-480.0,0.00024383,2]
[381642860,1756300287963,-522.2,0.00024383,2]
[381642861,1756300287973,-171.23298579,0.00024383,2]
[381642862,1756300287983,-480.0,0.00024383,2]
[381642863,1756300287992,-480.0,0.00024383,2]
[381642864,1756300288001,-682.64,0.00024383,2]
[381642865,1756300288011,-480.0,0.00024383,2]
[381642866,1756300288021,-480.0,0.00024383,2]
[381642867,1756300288030,-480.0,0.00024383,2]
[381642868,1756300288039,-480.0,0.00024383,2]
[381642869,1756300288048,-200.0,0.00024383,2]
[381642870,1756300288058,-480.0,0.00024383,2]
[381642871,1756300288067,-480.0,0.00024383,2]
[381642872,1756300288077,-480.0,0.00024383,2]
[381642873,1756300288087,-496.41,0.00024383,2]
[381642874,1756300288097,-480.0,0.00024383,2]
[381642875,1756300288106,-961.54,0.00024383,2]
[381642876,1756300288116,-480.0,0.00024383,2]
[381642877,1756300288125,-541.92,0.00024383,2]
[381642878,1756300288136,-480.0,0.00024383,2]
[381642879,1756300288152,-489.46,0.00024383,2]